fUST/lending_fUST_20241001
["ID","MTS","AMOUNT","RATE_DAILY","PERIOD"]
[339581955,1727713843760,-500.0,0.00013698,2]
[339581956,1727713843769,-500.0,0.00013698,2]
[339581957,1727713843779,-500.0,0.00013698,2]
[339581958,1727713843789,-500.0,0.00013698,2]
[339581959,1727713843798,-500.0,0.00013698,2]
[339581960,1727713843807,-500.0,0.00013698,2]
[339581961,1727713843816,-511.78033338,0.00013698,2]
[339581962,1727713843825,-718.25506558,0.00013698,2]
[339581963,1727713849132,-238.19493442,0.00013698,2]
[339581964,1727713849143,-500.0,0.00013698,2]
[339581965,1727713849152,-500.0,0.00013698,2]
[339581966,1727713849162,-500.0,0.00013698,2]
[339581967,1727713849172,-500.0,0.00013698,2]
[339581968,1727713849182,-500.0,0.00013698,2]
[339581969,1727713849193,-500.0,0.00013698,2]
[339581970,1727713849203,-500.0,0.00013698,2]
[339581971,1727713849213,-500.0,0.00013698,2]
[339581972,1727713849224,-418.15304581,0.00013698,2]
[339581973,1727713849237,-1463.71695419,0.00013698,2]
[339581974,1727713849250,-500.0,0.00013698,2]
[339581975,1727713849260,-500.99190556,0.00013698,2]
[339581976,1727713849270,-500.0,0.00013698,2]
[339581977,1727713849280,-500.0,0.00013698,2]
[339581978,1727713849290,-500.0,0.00013698,2]
[339581979,1727713849300,-500.0,0.00013698,2]
[339581980,1727713849311,-500.0,0.00013698,2]
[339581981,1727713849323,-340.73508025,0.00013698,2]
[339581983,1727713898348,12832.67826095,0.0001,5]
[339581988,1727714624873,86842.7671957,0.0001,2]
[339581989,1727714807920,250.0,9.954e-05,2]
[339581990,1727714808153,250.0,9.982e-05,2]
[339581991,1727714808369,250.0,0.00010009,2]
[339581992,1727714808587,250.0,0.00010036,2]
[339581993,1727714808819,250.0,0.00010063,2]
[339581994,1727714809102,250.0,0.00010091,2]
[339581996,1727714954136,-250.0,0.00010118,2]
[339581997,1727714954158,-250.0,0.00010145,2]
[339581998,1727714954179,-192.64381511,0.00010173,2]
[339582000,1727715012496,22908.8967068,0.0001,2]
[339582014,1727715032568,-57.35618489,0.00010173,2]
[339582015,1727715032578,-250.0,0.000102,2]
[339582016,1727715032588,-250.0,0.00010227,2]
[339582017,1727715032598,-250.0,0.00010254,2]
[339582018,1727715032607,-250.0,0.00010282,2]
[339582019,1727715032616,-250.0,0.00010309,2]
[339582020,1727715032626,-250.0,0.00010336,2]
[339582021,1727715032635,-250.0,0.00010364,2]
[339582022,1727715032646,-250.0,0.00010391,2]
[339582023,1727715032656,-1892.49150252,0.00010391,2]
[339582046,1727715038620,-524.451178,0.00010391,2]
[339582048,1727715038630,-181.7608971,0.00010417,2]
[339582050,1727715038640,-250.0,0.00010418,2]
[339582053,1727715038654,-250.0,0.00010445,2]
[339582055,1727715038669,-250.0,0.00010473,2]
[339582057,1727715038679,-300.0,0.00010858,2]
[339582059,1727715038688,-300.0,0.00010858,2]
[339582061,1727715038700,-13340.19455227,0.00010859,2]
[339582062,1727715038709,-1850.52234144,0.00010876,2]
[339582063,1727715038719,-24900.0,0.00010876,2]
[339582064,1727715038729,-250.0,0.0001091,2]
[339582065,1727715038739,-3000.0,0.00010923,2]
[339582066,1727715038749,-196.51,0.00010959,2]
[339582067,1727715038764,-163.76,0.00010959,2]
[339582068,1727715038774,-818.84,0.00010959,2]
[339582069,1727715038784,-420.0,0.00011933,2]
[339582070,1727715038793,-420.0,0.00011944,2]
[339582071,1727715038804,-600.0,0.00011972,2]
[339582072,1727715038814,-500.0,0.00012764,2]
[339582073,1727715038824,-412.5224329,0.00012878,2]
[339582074,1727715038835,-587.0,0.00013115,2]
[339582075,1727715038845,-587.0,0.00013138,2]
[339582076,1727715038855,-657.658738,0.00013151,2]
[339582077,1727715038865,-600.0,0.00013342,2]
[339582078,1727715038875,-150.0,0.00013462,2]
[339582079,1727715038885,-193.22307627,0.00013488,2]
[339582080,1727715038895,-1000.0,0.00013553,2]
[339582081,1727715038908,-135537.63813025,0.00013561,2]
[339582082,1727715038917,-359.94209863,0.00013562,2]
[339582083,1727715038927,-11447.83630683,0.00013562,2]
[339582084,1727715038938,-359.94209862,0.00013571,2]
[339582085,1727715038948,-7069.19095078,0.00013571,2]
[339582086,1727715038958,-1069.02003492,0.00013578,2]
[339582087,1727715038968,-359.94209862,0.0001358,2]
[339582088,1727715038978,-52710.7271624,0.00013588,2]
[339582089,1727715038988,-14249.0468791,0.00013588,2]
[339582090,1727715038998,-359.94209862,0.00013589,2]
[339582091,1727715039008,-359.94209862,0.00013598,2]
[339582092,1727715039018,-19694.92975175,0.00013598,2]
[339582093,1727715039027,-52710.7271624,0.00013649,2]
[339582094,1727715039037,-14249.0468791,0.00013649,2]
[339582095,1727715039046,-52710.7271624,0.00013658,2]
[339582096,1727715039055,-14249.0468791,0.00013658,2]
[339582097,1727715039065,-52710.7271624,0.00013668,2]
[339582098,1727715039074,-14249.0468791,0.00013668,2]
[339582099,1727715039083,-502.02608007,0.00013673,2]
[339582100,1727715039093,-500.0,0.00013673,2]
[339582101,1727715039102,-500.0,0.00013673,2]
[339582102,1727715039112,-500.0,0.00013673,2]
[339582103,1727715039122,-161.18330768,0.00013673,2]
[339582104,1727715039131,-500.31774224,0.00013673,2]
[339582105,1727715039141,-500.13534028,0.00013673,2]
[339582106,1727715039152,-200.07428194,0.00013673,2]
[339582107,1727715039162,-500.0,0.00013673,2]
[339582108,1727715039174,-549.80656059,0.00013673,2]
[339582109,1727715039183,-500.0,0.00013673,2]
[339582110,1727715039193,-500.0,0.00013673,2]
[339582111,1727715039202,-500.0,0.00013673,2]
[339582112,1727715039212,-500.0,0.00013673,2]
[339582113,1727715039222,-500.0,0.00013673,2]
[339582114,1727715039232,-500.0,0.00013673,2]
[339582115,1727715039242,-197.83561304,0.00013673,2]
[339582116,1727715039252,-500.0,0.00013673,2]
[339582117,1727715039261,-500.72786872,0.00013673,2]
[339582118,1727715039272,-500.0,0.00013673,2]
[339582119,1727715039281,-500.0,0.00013673,2]
[339582120,1727715039290,-500.0,0.00013673,2]
[339582121,1727715039300,-501.43121853,0.00013673,2]
[339582122,1727715039309,-500.0,0.00013673,2]
[339582123,1727715039319,-500.0,0.00013673,2]
[339582124,1727715039328,-500.0,0.00013673,2]
[339582125,1727715039338,-52710.7271624,0.00013678,2]
[339582126,1727715039348,-14249.0468791,0.00013678,2]
[339582127,1727715039357,-52710.7271624,0.00013678,2]
[339582128,1727715039366,-14249.0468791,0.00013678,2]
[339582129,1727715039376,-60840.04253343,0.00013688,2]
[339582130,1727715039386,-42747.1406374,0.00013688,2]
[339582131,1727715039396,-173433.80917874,0.00013688,2]
[339582132,1727715039413,-151.0,0.00013688,2]
[339582133,1727715039423,-297.447338,0.00013688,2]
[339582134,1727715039432,-151.0,0.00013688,2]
[339582135,1727715039442,-720.530432,0.00013688,2]
[339582136,1727715039451,-142490.468791,0.00013688,2]
[339582137,1727715039460,-500.0,0.00013698,2]
[339582138,1727715039470,-622.62159401,0.00013698,2]
[339582139,1727715039479,-399.53763885,0.00013698,2]
[339582140,1727715039488,-500.0,0.00013698,2]
[339582141,1727715039497,-500.0,0.00013698,2]
[339582142,1727715039507,-500.0,0.00013698,2]
[339582143,1727715039516,-500.0,0.00013698,2]
[339582144,1727715039526,-500.0,0.00013698,2]
[339582145,1727715039535,-500.0,0.00013698,2]
[339582146,1727715039545,-500.0,0.00013698,2]
[339582147,1727715039554,-395.22527166,0.00013698,2]
[339582148,1727715039564,-500.0,0.00013698,2]
[339582149,1727715039573,-500.0,0.00013698,2]
[339582150,1727715039582,-389.46960784,0.00013698,2]
[339582151,1727715039591,-500.0,0.00013698,2]
[339582152,1727715039601,-395.80517259,0.00013698,2]
[339582153,1727715039610,-500.0,0.00013698,2]
[339582154,1727715039619,-518.1299624,0.00013698,2]
[339582155,1727715039629,-500.0,0.00013698,2]
[339582156,1727715039639,-500.0,0.00013698,2]
[339582157,1727715039648,-500.0,0.00013698,2]
[339582158,1727715039662,-500.0,0.00013698,2]
[339582159,1727715039673,-500.0,0.00013698,2]
[339582160,1727715039682,-450.92280609,0.00013698,2]
[339582161,1727715039692,-500.0,0.00013698,2]
[339582162,1727715039702,-500.0,0.00013698,2]
[339582163,1727715039711,-386.62769786,0.00013698,2]
[339582164,1727715039721,-500.0,0.00013698,2]
[339582165,1727715039731,-500.0,0.00013698,2]
[339582166,1727715039740,-500.0,0.00013698,2]
[339582167,1727715039750,-500.0,0.00013698,2]
[339582168,1727715039759,-500.0,0.00013698,2]
[339582169,1727715039768,-500.0,0.00013698,2]
[339582170,1727715039778,-500.0,0.00013698,2]
[339582171,1727715039788,-392.63239038,0.00013698,2]
[339582172,1727715039798,-500.0,0.00013698,2]
[339582173,1727715039814,-500.0,0.00013698,2]
[339582174,1727715039827,-500.0,0.00013698,2]
[339582175,1727715039840,-500.0,0.00013698,2]
[339582176,1727715039853,-500.0,0.00013698,2]
[339582177,1727715039866,-500.0,0.00013698,2]
[339582178,1727715039878,-500.0,0.00013698,2]
[339582179,1727715039888,-500.0,0.00013698,2]
[339582180,1727715039899,-500.0,0.00013698,2]
[339582181,1727715039912,-500.0,0.00013698,2]
[339582182,1727715039924,-164.67642707,0.00013698,2]
[339582183,1727715039935,-500.0,0.00013698,2]
[339582184,1727715039948,-500.0,0.00013698,2]
[339582185,1727715039960,-500.0,0.00013698,2]
[339582186,1727715039973,-500.0,0.00013698,2]
[339582187,1727715039985,-272.08682066,0.00013698,2]
[339582188,1727715039996,-500.0,0.00013698,2]
[339582189,1727715040008,-500.0,0.00013698,2]
[339582190,1727715040022,-548.16,0.00013698,2]
[339582191,1727715040034,-528.19098392,0.00013698,2]
[339582192,1727715040046,-500.0,0.00013698,2]
[339582193,1727715040058,-500.0,0.00013698,2]
[339582194,1727715040070,-500.0,0.00013698,2]
[339582195,1727715040082,-500.0,0.00013698,2]
[339582196,1727715040094,-500.0,0.00013698,2]
[339582197,1727715040106,-500.0,0.00013698,2]
[339582198,1727715040118,-500.0,0.00013698,2]
[339582200,1727715040131,-500.0,0.00013698,2]
[339582201,1727715040142,-500.0,0.00013698,2]
[339582202,1727715040157,-500.0,0.00013698,2]
[339582203,1727715040169,-500.0,0.00013698,2]
[339582204,1727715040180,-500.0,0.00013698,2]
[339582206,1727715040191,-500.0,0.00013698,2]
[339582207,1727715040203,-500.0,0.00013698,2]
[339582208,1727715040215,-500.0,0.00013698,2]
[339582209,1727715040227,-500.0,0.00013698,2]
[339582210,1727715040238,-500.0,0.00013698,2]
[339582211,1727715040252,-502.81,0.00013698,2]
[339582212,1727715040264,-500.0,0.00013698,2]
[339582213,1727715040275,-931.19,0.00013698,2]
[339582214,1727715040286,-500.0,0.00013698,2]
[339582217,1727715040299,-500.0,0.00013698,2]
[339582219,1727715040311,-500.0,0.00013698,2]
[339582220,1727715040323,-500.0,0.00013698,2]
[339582221,1727715040335,-500.0,0.00013698,2]
[339582222,1727715040348,-500.0,0.00013698,2]
[339582223,1727715040358,-500.0,0.00013698,2]
[339582224,1727715040368,-500.0,0.00013698,2]
[339582225,1727715040377,-500.0,0.00013698,2]
[339582226,1727715040387,-500.0,0.00013698,2]
[339582227,1727715040397,-555.02650704,0.00013698,2]
[339582230,1727715040410,-500.0,0.00013698,2]
[339582232,1727715040422,-500.0,0.00013698,2]
[339582234,1727715040433,-500.0,0.00013698,2]
[339582236,1727715040444,-623.05791889,0.00013698,2]
[339582239,1727715040456,-500.0,0.00013698,2]
[339582241,1727715040466,-500.0,0.00013698,2]
[339582243,1727715040476,-582.20990287,0.00013698,2]
[339582245,1727715040489,-500.0,0.00013698,2]
[339582247,1727715040499,-500.0,0.00013698,2]
[339582249,1727715040510,-500.0,0.00013698,2]
[339582252,1727715040523,-500.0,0.00013698,2]
[339582254,1727715040535,-500.0,0.00013698,2]
[339582256,1727715040545,-500.0,0.00013698,2]
[339582259,1727715040556,-500.0,0.00013698,2]
[339582261,1727715040567,-500.0,0.00013698,2]
[339582263,1727715040577,-638.97539031,0.00013698,2]
[339582265,1727715040588,-500.0,0.00013698,2]
[339582267,1727715040598,-500.0,0.00013698,2]
[339582270,1727715040609,-500.0,0.00013698,2]
[339582272,1727715040619,-500.0,0.00013698,2]
[339582274,1727715040630,-500.0,0.00013698,2]
[339582276,1727715040640,-500.0,0.00013698,2]
[339582278,1727715040652,-500.0,0.00013698,2]
[339582280,1727715040663,-438.69561253,0.00013698,2]
[339582283,1727715040673,-547.78286686,0.00013698,2]
[339582285,1727715040683,-500.0,0.00013698,2]
[339582288,1727715040701,-500.0,0.00013698,2]
[339582290,1727715040712,-177.64800519,0.00013698,2]
[339582292,1727715040723,-500.0,0.00013698,2]
[339582294,1727715040734,-326.17756451,0.00013698,2]
[339582296,1727715040745,-500.0,0.00013698,2]
[339582299,1727715040756,-500.0,0.00013698,2]
[339582301,1727715040767,-500.0,0.00013698,2]
[339582303,1727715040777,-500.0,0.00013698,2]
[339582305,1727715040787,-500.0,0.00013698,2]
[339582307,1727715040799,-500.0,0.00013698,2]
[339582310,1727715040809,-500.0,0.00013698,2]
[339582312,1727715040820,-500.0,0.00013698,2]
[339582314,1727715040830,-500.0,0.00013698,2]
[339582316,1727715040841,-500.0,0.00013698,2]
[339582318,1727715040852,-500.0,0.00013698,2]
[339582321,1727715040863,-500.0,0.00013698,2]
[339582323,1727715040874,-562.25618029,0.00013698,2]
[339582325,1727715040884,-500.0,0.00013698,2]
[339582327,1727715040895,-500.0,0.00013698,2]
[339582329,1727715040907,-1011.52,0.00013698,2]
[339582332,1727715040920,-500.0,0.00013698,2]
[339582334,1727715040931,-500.0,0.00013698,2]
[339582336,1727715040941,-500.0,0.00013698,2]
[339582338,1727715040951,-500.0,0.00013698,2]
[339582340,1727715040962,-500.0,0.00013698,2]
[339582342,1727715040972,-500.0,0.00013698,2]
[339582344,1727715040983,-500.0,0.00013698,2]
[339582346,1727715040994,-500.0,0.00013698,2]
[339582349,1727715041005,-500.0,0.00013698,2]
[339582351,1727715041015,-500.0,0.00013698,2]
[339582353,1727715041026,-500.0,0.00013698,2]
[339582355,1727715041037,-500.0,0.00013698,2]
[339582357,1727715041047,-500.0,0.00013698,2]
[339582359,1727715041058,-1888.84,0.00013698,2]
[339582362,1727715041070,-500.0,0.00013698,2]
[339582364,1727715041080,-564.42,0.00013698,2]
[339582366,1727715041091,-500.0,0.00013698,2]
[339582368,1727715041102,-500.0,0.00013698,2]
[339582370,1727715041112,-500.0,0.00013698,2]
[339582372,1727715041124,-534.19453359,0.00013698,2]
[339582375,1727715041134,-500.0,0.00013698,2]
[339582377,1727715041146,-500.0,0.00013698,2]
[339582379,1727715041158,-500.0,0.00013698,2]
[339582381,1727715041170,-500.0,0.00013698,2]
[339582383,1727715041183,-500.0,0.00013698,2]
[339582386,1727715041194,-500.0,0.00013698,2]
[339582388,1727715041204,-500.0,0.00013698,2]
[339582390,1727715041216,-500.0,0.00013698,2]
[339582392,1727715041227,-500.0,0.00013698,2]
[339582394,1727715041238,-500.0,0.00013698,2]
[339582396,1727715041250,-500.0,0.00013698,2]
[339582398,1727715041261,-521.80205614,0.00013698,2]
[339582401,1727715041271,-500.0,0.00013698,2]
[339582403,1727715041282,-500.0,0.00013698,2]
[339582405,1727715041291,-455.90468222,0.00013698,2]
[339582407,1727715041302,-500.0,0.00013698,2]
[339582409,1727715041312,-500.0,0.00013698,2]
[339582411,1727715041323,-500.0,0.00013698,2]
[339582413,1727715041334,-500.0,0.00013698,2]
[339582415,1727715041344,-500.0,0.00013698,2]
[339582418,1727715041355,-500.0,0.00013698,2]
[339582420,1727715041366,-500.0,0.00013698,2]
[339582422,1727715041377,-500.0,0.00013698,2]
[339582424,1727715041388,-500.0,0.00013698,2]
[339582426,1727715041399,-151.0,0.00013698,2]
[339582429,1727715041411,-151.0,0.00013698,2]
[339582431,1727715041422,-500.0,0.00013698,2]
[339582433,1727715041433,-500.0,0.00013698,2]
[339582435,1727715041443,-500.0,0.00013698,2]
[339582437,1727715041453,-151.0,0.00013698,2]
[339582439,1727715041464,-151.0,0.00013698,2]
[339582441,1727715041474,-509.61395947,0.00013698,2]
[339582444,1727715041484,-500.0,0.00013698,2]
[339582446,1727715041495,-500.0,0.00013698,2]
[339582448,1727715041505,-500.0,0.00013698,2]
[339582450,1727715041515,-590.1,0.00013698,2]
[339582452,1727715041526,-500.0,0.00013698,2]
[339582454,1727715041536,-500.0,0.00013698,2]
[339582456,1727715041546,-500.0,0.00013698,2]
[339582458,1727715041556,-500.0,0.00013698,2]
[339582461,1727715041567,-500.0,0.00013698,2]
[339582463,1727715041577,-500.0,0.00013698,2]
[339582465,1727715041587,-500.0,0.00013698,2]
[339582467,1727715041598,-500.0,0.00013698,2]
[339582469,1727715041608,-500.0,0.00013698,2]
[339582472,1727715041619,-220.50806816,0.00013698,2]
[339582474,1727715041629,-500.0,0.00013698,2]
[339582475,1727715041640,-893.3,0.00013698,2]
[339582476,1727715041652,-589.87,0.00013698,2]
[339582477,1727715041665,-151.0,0.00013698,2]
[339582478,1727715041675,-549.08,0.00013698,2]
[339582479,1727715041686,-246.42163,0.00013698,2]
[339582480,1727715041696,-500.0,0.00013698,2]
[339582481,1727715041707,-500.0,0.00013698,2]
[339582482,1727715041717,-500.0,0.00013698,2]
[339582483,1727715041728,-500.0,0.00013698,2]
[339582484,1727715041739,-605.89,0.00013698,2]
[339582485,1727715041749,-711.75,0.00013698,2]
[339582486,1727715041759,-500.0,0.00013698,2]
[339582487,1727715041770,-500.0,0.00013698,2]
[339582488,1727715041780,-500.0,0.00013698,2]
[339582489,1727715041791,-151.0,0.00013698,2]
[339582491,1727715041801,-500.0,0.00013698,2]
[339582493,1727715041811,-151.0,0.00013698,2]
[339582495,1727715041822,-500.0,0.00013698,2]
[339582497,1727715041832,-1383.86,0.00013698,2]
[339582499,1727715041842,-500.0,0.00013698,2]
[339582501,1727715041853,-500.0,0.00013698,2]
[339582504,1727715041865,-500.0,0.00013698,2]
[339582506,1727715041876,-535.0235395,0.00013698,2]
[339582508,1727715041886,-500.0,0.00013698,2]
[339582510,1727715041897,-500.0,0.00013698,2]
[339582513,1727715041911,-500.0,0.00013698,2]
[339582515,1727715041921,-500.0,0.00013698,2]
[339582517,1727715041931,-500.0,0.00013698,2]
[339582519,1727715041942,-500.0,0.00013698,2]
[339582521,1727715041952,-500.0,0.00013698,2]
[339582523,1727715041962,-512.19493801,0.00013698,2]
[339582525,1727715041973,-500.0,0.00013698,2]
[339582527,1727715041984,-500.0,0.00013698,2]
[339582530,1727715041994,-500.0,0.00013698,2]
[339582532,1727715042005,-500.0,0.00013698,2]
[339582534,1727715042015,-500.0,0.00013698,2]
[339582536,1727715042025,-500.0,0.00013698,2]
[339582538,1727715042035,-500.0,0.00013698,2]
[339582540,1727715042046,-500.0,0.00013698,2]
[339582542,1727715042056,-500.0,0.00013698,2]
[339582544,1727715042066,-500.0,0.00013698,2]
[339582546,1727715042077,-500.0,0.00013698,2]
[339582549,1727715042087,-500.0,0.00013698,2]
[339582551,1727715042097,-731.6,0.00013698,2]
[339582553,1727715042107,-500.0,0.00013698,2]
[339582555,1727715042118,-500.0,0.00013698,2]
[339582557,1727715042128,-550.31,0.00013698,2]
[339582559,1727715042139,-500.0,0.00013698,2]
[339582562,1727715042152,-500.0,0.00013698,2]
[339582564,1727715042162,-500.0,0.00013698,2]
[339582566,1727715042174,-500.0,0.00013698,2]
[339582568,1727715042184,-500.0,0.00013698,2]
[339582570,1727715042195,-500.0,0.00013698,2]
[339582572,1727715042205,-500.0,0.00013698,2]
[339582574,1727715042215,-500.0,0.00013698,2]
[339582576,1727715042225,-500.0,0.00013698,2]
[339582578,1727715042236,-500.0,0.00013698,2]
[339582580,1727715042246,-500.0,0.00013698,2]
[339582583,1727715042258,-500.0,0.00013698,2]
[339582585,1727715042269,-500.0,0.00013698,2]
[339582587,1727715042279,-586.36,0.00013698,2]
[339582589,1727715042289,-500.0,0.00013698,2]
[339582591,1727715042299,-500.0,0.00013698,2]
[339582593,1727715042310,-500.0,0.00013698,2]
[339582596,1727715042320,-500.0,0.00013698,2]
[339582598,1727715042330,-500.0,0.00013698,2]
[339582600,1727715042342,-500.0,0.00013698,2]
[339582602,1727715042352,-1173.85,0.00013698,2]
[339582604,1727715042362,-1252.26,0.00013698,2]
[339582606,1727715042372,-657.25,0.00013698,2]
[339582608,1727715042382,-500.0,0.00013698,2]
[339582611,1727715042392,-500.0,0.00013698,2]
[339582613,1727715042404,-500.0,0.00013698,2]
[339582615,1727715042414,-500.0,0.00013698,2]
[339582617,1727715042424,-500.0,0.00013698,2]
[339582619,1727715042434,-500.0,0.00013698,2]
[339582621,1727715042444,-500.0,0.00013698,2]
[339582623,1727715042455,-500.0,0.00013698,2]
[339582626,1727715042466,-500.0,0.00013698,2]
[339582628,1727715042475,-500.0,0.00013698,2]
[339582630,1727715042486,-500.0,0.00013698,2]
[339582632,1727715042496,-500.0,0.00013698,2]
[339582634,1727715042506,-500.0,0.00013698,2]
[339582636,1727715042516,-500.0,0.00013698,2]
[339582639,1727715042527,-400.32875488,0.00013698,2]
[339582641,1727715042537,-659.41,0.00013698,2]
[339582643,1727715042547,-500.0,0.00013698,2]
[339582645,1727715042558,-500.0,0.00013698,2]
[339582647,1727715042568,-500.0,0.00013698,2]
[339582649,1727715042578,-500.0,0.00013698,2]
[339582651,1727715042589,-548.03062871,0.00013698,2]
[339582654,1727715042600,-151.0,0.00013698,2]
[339582692,1727715042946,-151.0,0.00013698,2]
[339582696,1727715042974,-1044.52,0.00013698,2]
[339582699,1727715042991,-500.0,0.00013698,2]
[339582701,1727715043001,-500.0,0.00013698,2]
[339582703,1727715043011,-500.0,0.00013698,2]
[339582705,1727715043020,-500.0,0.00013698,2]
[339582707,1727715043030,-500.0,0.00013698,2]
[339582709,1727715043040,-500.0,0.00013698,2]
[339582711,1727715043049,-500.0,0.00013698,2]
[339582713,1727715043059,-500.0,0.00013698,2]
[339582715,1727715043069,-500.0,0.00013698,2]
[339582717,1727715043078,-500.0,0.00013698,2]
[339582719,1727715043088,-500.0,0.00013698,2]
[339582721,1727715043097,-500.0,0.00013698,2]
[339582723,1727715043108,-944.69,0.00013698,2]
[339582726,1727715043117,-500.0,0.00013698,2]
[339582727,1727715043127,-500.0,0.00013698,2]
[339582730,1727715043136,-500.0,0.00013698,2]
[339582732,1727715043145,-500.0,0.00013698,2]
[339582734,1727715043155,-616.83152426,0.00013698,2]
[339582738,1727715043167,-500.0,0.00013698,2]
[339582741,1727715043180,-500.0,0.00013698,2]
[339582743,1727715043189,-500.0,0.00013698,2]
[339582745,1727715043199,-500.0,0.00013698,2]
[339582747,1727715043208,-500.0,0.00013698,2]
[339582749,1727715043218,-500.0,0.00013698,2]
[339582751,1727715043227,-500.0,0.00013698,2]
[339582753,1727715043237,-500.0,0.00013698,2]
[339582755,1727715043247,-500.0,0.00013698,2]
[339582757,1727715043258,-500.0,0.00013698,2]
[339582759,1727715043267,-500.0,0.00013698,2]
[339582761,1727715043277,-500.0,0.00013698,2]
[339582764,1727715043286,-1000.0,0.00013698,2]
[339582766,1727715043295,-500.0,0.00013698,2]
[339582768,1727715043304,-500.0,0.00013698,2]
[339582770,1727715043313,-755.39,0.00013698,2]
[339582772,1727715043323,-150.00455457,0.00013698,2]
[339582774,1727715043333,-500.0,0.00013698,2]
[339582776,1727715043342,-398.87235149,0.00013698,2]
[339582778,1727715043351,-500.0,0.00013698,2]
[339582780,1727715043361,-500.0,0.00013698,2]
[339582782,1727715043371,-1392.5,0.00013698,2]
[339582784,1727715043380,-500.0,0.00013698,2]
[339582787,1727715043390,-500.0,0.00013698,2]
[339582789,1727715043400,-500.0,0.00013698,2]
[339582791,1727715043409,-701.69,0.00013698,2]
[339582793,1727715043420,-812.41,0.00013698,2]
[339582795,1727715043429,-500.0,0.00013698,2]
[339582797,1727715043438,-500.0,0.00013698,2]
[339582799,1727715043447,-500.0,0.00013698,2]
[339582801,1727715043458,-500.0,0.00013698,2]
[339582803,1727715043468,-500.0,0.00013698,2]
[339582805,1727715043477,-500.0,0.00013698,2]
[339582807,1727715043487,-500.0,0.00013698,2]
[339582809,1727715043496,-500.0,0.00013698,2]
[339582811,1727715043505,-574.8785576,0.00013698,2]
[339582812,1727715043514,-587.7,0.00013698,2]
[339582814,1727715043523,-500.0,0.00013698,2]
[339582816,1727715043533,-500.0,0.00013698,2]
[339582818,1727715043542,-500.0,0.00013698,2]
[339582820,1727715043552,-500.0,0.00013698,2]
[339582822,1727715043561,-500.0,0.00013698,2]
[339582824,1727715043570,-500.0,0.00013698,2]
[339582827,1727715043579,-500.0,0.00013698,2]
[339582829,1727715043588,-242.88276468,0.00013698,2]
[339582831,1727715043597,-500.0,0.00013698,2]
[339582833,1727715043606,-500.0,0.00013698,2]
[339582835,1727715043615,-660.75,0.00013698,2]
[339582837,1727715043624,-500.0,0.00013698,2]
[339582839,1727715043634,-500.0,0.00013698,2]
[339582841,1727715043642,-1271.43,0.00013698,2]
[339582843,1727715043652,-500.0,0.00013698,2]
[339582845,1727715043661,-500.0,0.00013698,2]
[339582847,1727715043670,-500.0,0.00013698,2]
[339582849,1727715043682,-500.0,0.00013698,2]
[339582851,1727715043692,-500.0,0.00013698,2]
[339582853,1727715043701,-500.0,0.00013698,2]